Cogmind - Beta 9.3 @@@ ROGUE MODE // 2019.12.19 @ 16:06:40 // Winter2019/RPGLIKE Player: Demise Result: Destroyed by Y-45 Defender with Beam Rifle Performance ------------- Evolutions (2) 1000 Regions Visited (5) 1000 Robots Destroyed (11) 55 Value Destroyed (131) 131 Prototype IDs (22) 440 Alien Tech Used (0) 0 Bonus (300) 300 TOTAL SCORE: 2926 Bonus ------- Aligned with FarCom 300 Cogmind --------- Core Integrity 0/600 Matter 476/500 Energy 265/265 System Corruption 0% Temperature Cool (9) Movement Rolling (90) Location -8/Materials Parts ------- > --- POWER (1) -------- Improved Ion Engine > --- PROPULSION (2) --- Wheel Compact Wheel > --- UTILITY (3) ------ High-capacity Matter Pod Improved Terrain Scanner Hacking Suite > --- WEAPON (1) ------- Heavy Assault Rifle > --- INVENTORY (1) ---- Grenade Launcher Peak State ------------ > --- POWER ------------ Improved Ion Engine > --- PROPULSION ------- Flight Unit Flight Unit > --- UTILITY ---------- Medium Matter Pod Improved Terrain Scanner Hacking Suite > --- WEAPON ----------- Heavy Assault Rifle > --- INVENTORY -------- Grenade Launcher [Rating: 12] Favorites ----------- Power Improved Ion Engine Engine Improved Ion Engine Propulsion Wheel Wheel Wheel Flight Unit Flight Unit Utility Improved Terrain Scanner Device Improved Terrain Scanner Storage Medium Matter Pod Hackware Hacking Suite Weapon Heavy Assault Rifle Ballistic Gun Heavy Assault Rifle Build | -11 -10 -10 -10 -9 -8 ------- Run | Scr Mat Min Exi Min Mat Slots Evolved 3 | . 2 1 . . . Power . | . . . . . . Propulsion 1 | . . 1 . . . Utility 2 | . 2 . . . . Weapon . | . . . . . . Parts Attached 14 | 4 3 6 1 . . Power 2 | 1 . 1 . . . Engine 2 | 1 . 1 . . . Core . | . . . . . . Reactor . | . . . . . . Propulsion 5 | 1 . 4 . . . Treads . | . . . . . . Leg . | . . . . . . Wheel 3 | 1 . 2 . . . Hover . | . . . . . . Flight 2 | . . 2 . . . Utility 4 | 1 2 . 1 . . Device 1 | 1 . . . . . Storage 2 | . 1 . 1 . . Processor . | . . . . . . Hackware 1 | . 1 . . . . Protection . | . . . . . . Artifact . | . . . . . . Weapon 3 | 1 1 1 . . . Energy Gun . | . . . . . . Energy Cannon . | . . . . . . Ballistic Gun 3 | 1 1 1 . . . Ballistic Cannon . | . . . . . . Launcher . | . . . . . . Special Weapon . | . . . . . . Impact Weapon . | . . . . . . Slashing Weapon . | . . . . . . Piercing Weapon . | . . . . . . Special Melee Weapon . | . . . . . . Unidentified Prototypes . | . . . . . . Parts Lost . | . . . . . . Power . | . . . . . . Propulsion . | . . . . . . Utility . | . . . . . . Weapon . | . . . . . . Highest Loss Streak . | . . . . . . Average Slot Usage (%) 98 | . 100 95 100 100 100 Engine 15 | . 20 14 14 14 14 Wheel 24 | . 20 20 28 28 28 Device 15 | . 20 14 14 14 14 Storage 14 | . 16 14 14 14 14 Hackware 12 | . . 14 14 14 14 Ballistic Gun 15 | . 20 14 14 14 14 Naked Turns . | . . . . . . Heaviest Build 15 | 7 9 13 15 15 15 Greatest Support 26 | 10 10 26 26 26 26 Greatest Overweight (x) 4 | . . 4 . . . Average Overweight (x) . | . . . . . . Largest Inventory Capacity 1 | . 1 1 1 1 1 Average Capacity . | . . 1 1 1 1 Most Carried 1 | . 1 1 1 1 1 Average Carried . | . . 1 1 1 1 Final Capacity 1 | . 1 1 1 1 1 Final Carried 1 | . 1 1 1 1 1 Class Distribution -------------------- 78% | Scavenger-Mutant 21% | Mutant Dominant Class ---------------- Mutant | -10/Materials Scavenger-Mutant | -10/Mines Scavenger-Mutant | -10/Exiles Scavenger-Mutant | -9/Mines Scavenger-Mutant | -8/Materials Resources | -11 -10 -10 -10 -9 -8 ----------- Run | Scr Mat Min Exi Min Mat Matter Collected 548 | 246 37 216 10 21 18 Remotely . | . . . . . . Salvage Created 214 | 67 23 21 . 46 57 Parts 19 | 5 1 3 . 9 1 Haulers Intercepted . | . . . . . . Recyclers Shooed . | . . . . . . Parts Field Recycled . | . . . . . . Retrieved Matter . | . . . . . . Parts Self-Destructed . | . . . . . . Prevented . | . . . . . . Kills | -11 -10 -10 -10 -9 -8 ------- Run | Scr Mat Min Exi Min Mat Combat Hostiles Destroyed 9 | . 2 2 . 4 1 Guns 9 | . 2 2 . 4 1 Classes Destroyed 4 | 2 1 . . . 1 Tunneler 1 | 1 . . . . . Recycler 1 | 1 . . . . . Swarmer 7 | . 2 1 . 4 . Grunt 1 | . . . . . 1 Best Kill Streak 3 | 2 2 1 . 3 1 Combat Bots Only 3 | . 2 1 . 3 1 Max Kills in Single Turn 1 | 1 1 1 . 1 1 Gunslinging . | . . . . . . Exploded . | . . . . . . Melee . | . . . . . . Uniques/NPCs Destroyed 1 | . . 1 . . . YI-UF0 (-10/Mines) Combat | -11 -10 -10 -10 -9 -8 -------- Run | Scr Mat Min Exi Min Mat Damage Taken 784 | . 66 447 . 82 189 Core 654 | . 54 374 . 66 160 Absorbed by Shields . | . . . . . . Redirected to Core 443 | . 38 255 . 49 101 Core Remaining (%) 63 | 100 . . . 26 . Volleys Fired 54 | 6 8 19 . 13 8 Largest 1 | 1 1 1 . 1 1 Hottest 23 | 20 20 23 . 23 23 Shots Fired 54 | 6 8 19 . 13 8 Gun 54 | 6 8 19 . 13 8 Cannon . | . . . . . . Launcher . | . . . . . . Special . | . . . . . . Kinetic 54 | 6 8 19 . 13 8 Thermal . | . . . . . . Explosive . | . . . . . . Electromagnetic . | . . . . . . Robot Hit Streak 6 | 6 4 5 . 2 4 Robot Miss Streak 3 | . 3 3 . 2 1 Penetration Max . | . . . . . . Secondary Targets . | . . . . . . Shots Hit Robots 31 | 6 4 10 . 5 6 Core Hits 18 | 4 3 3 . 5 3 Critical Hits . | . . . . . . Critical Kills . | . . . . . . Critical Parts Destroyed . | . . . . . . Melee Attacks . | . . . . . . Impact . | . . . . . . Slashing . | . . . . . . Piercing . | . . . . . . Sneak Attacks . | . . . . . . Combat Hostiles . | . . . . . . Follow-up Attacks . | . . . . . . Damage Inflicted 503 | 50 34 203 . 109 107 Guns 503 | 50 34 203 . 109 107 Cannons . | . . . . . . Explosions . | . . . . . . Melee . | . . . . . . Ramming . | . . . . . . Kinetic 503 | 50 34 203 . 109 107 Thermal . | . . . . . . Explosive . | . . . . . . Electromagnetic . | . . . . . . Impact . | . . . . . . Slashing . | . . . . . . Piercing . | . . . . . . Highest Corruption . | . . . . . . Average Corruption . | . . . . . . Corruption Purged . | . . . . . . Overload Shots . | . . . . . . Overflow Damage . | . . . . . . Projectiles . | . . . . . . Explosions . | . . . . . . Melee . | . . . . . . Knockbacks . | . . . . . . Impact . | . . . . . . Kinetic . | . . . . . . Secondary . | . . . . . . Self-Inflicted Damage . | . . . . . . Shots . | . . . . . . Rammed . | . . . . . . Targets Rammed . | . . . . . . Kicked . | . . . . . . Crushed . | . . . . . . Highest Temperature 1 | . . . . . 1 Average Temperature 1 | . . . . . 1 Received Heat Transfer 81 | . . . . . 81 Siege Activations . | . . . . . . Robots Corrupted . | . . . . . . Combat Hostiles . | . . . . . . Parts Fried . | . . . . . . Impact Corruptions . | . . . . . . Robots Melted . | . . . . . . Combat Hostiles . | . . . . . . Parts Melted . | . . . . . . Heat Transferred . | . . . . . . Parts Sabotaged . | . . . . . . Parts Stolen . | . . . . . . Parts Stripped . | . . . . . . Power Chain Reactions . | . . . . . . Missiles Intercepted . | . . . . . . Alert | -11 -10 -10 -10 -9 -8 ------- Run | Scr Mat Min Exi Min Mat Peak Influence 90 | 10 87 63 . 90 70 Average Influence 44 | 4 34 56 . 47 39 Maximum Alert Level . | . . . . . . Low Security (%) 100 | 100 100 100 . 100 100 Level 1 . | . . . . . . Level 2 . | . . . . . . Level 3 . | . . . . . . Level 4 . | . . . . . . Level 5 . | . . . . . . High Security . | . . . . . . Max Security . | . . . . . . Squads Dispatched 1 | . 1 . . . . Investigation 1 | . 1 . . . . Extermination . | . . . . . . Reinforcement . | . . . . . . Assault . | . . . . . . Garrison . | . . . . . . Intercept . | . . . . . . Construction Impeded . | . . . . . . Haulers Reinforced . | . . . . . . Stealth | -11 -10 -10 -10 -9 -8 --------- Run | Scr Mat Min Exi Min Mat Distress Signals 2 | . 2 . . . . Communications Jammed . | . . . . . . Distress Signals . | . . . . . . Times Spotted 20 | . 7 5 . 6 2 Peak Tracking Total 4 | . 4 3 . 3 3 Tactical Retreats 4 | . 2 . . 1 1 Traps | -11 -10 -10 -10 -9 -8 ------- Run | Scr Mat Min Exi Min Mat Traps Triggered . | . . . . . . Indirectly . | . . . . . . Trap Hack Attempts . | . . . . . . Triggered . | . . . . . . Disarmed . | . . . . . . Reprogrammed . | . . . . . . Reused . | . . . . . . Traps Extracted . | . . . . . . Installed . | . . . . . . Triggered . | . . . . . . Machines | -11 -10 -10 -10 -9 -8 ---------- Run | Scr Mat Min Exi Min Mat Machines Disabled . | . . . . . . Max in Single Turn . | . . . . . . Machines Sabotaged . | . . . . . . Garrisons Compromised . | . . . . . . Overloaded Fab Kills . | . . . . . . Fab Network Shutdowns . | . . . . . . Hacking | -11 -10 -10 -10 -9 -8 --------- Run | Scr Mat Min Exi Min Mat Machines Accessed 5 | . 2 . 1 . 2 Terminals 2 | . 2 . . . . Fabricators . | . . . . . . Repair Stations . | . . . . . . Recycling Units 1 | . . . . . 1 Scanalyzers 1 | . . . . . 1 Garrison Access . | . . . . . . Total Hacks 14 | . 8 . 1 . 5 Successful 11 | . 5 . 1 . 5 Failed 2 | . 2 . . . . Catastrophic 1 | . 1 . . . . Database Lockouts 3 | . 3 . . . . Manual 10 | . 9 . 1 . . Terminals 8 | . 8 . . . . Fabricators . | . . . . . . Repair Stations . | . . . . . . Recycling Units 2 | . . . . . 2 Scanalyzers 3 | . . . . . 3 Garrison Access . | . . . . . . Terminal Hacks 3 | . 2 . 1 . . Part Schematic 1 | . 1 . . . . Branch Access Points 1 | . 1 . . . . EX-Prototype ID Bank 1 | . . . 1 . . Fabricator Hacks . | . . . . . . Repair Station Hacks . | . . . . . . Recycling Unit Hacks 2 | . . . . . 2 Report Inventory 1 | . . . . . 1 Retrieve Matter 1 | . . . . . 1 Scanalyzer 3 | . . . . . 3 Insert Component 1 | . . . . . 1 Analyze 2 | . . . . . 2 Garrison Access Hacks . | . . . . . . Unauthorized Hacks 6 | . 6 . . . . Terminals 3 | . 3 . . . . Assimilate 1 | . 1 . . . . Botnet 2 | . 2 . . . . Fabricators . | . . . . . . Repair Stations . | . . . . . . Recycling Units . | . . . . . . Scanalyzers . | . . . . . . Garrison Access . | . . . . . . Data Cores Recovered . | . . . . . . Used . | . . . . . . Hacking Detections 3 | . 2 . . . 1 Full Trace Events 1 | . . . . . 1 Feedback Events . | . . . . . . Feedback Blocked . | . . . . . . Robot Schematics Acquired . | . . . . . . Robots Built . | . . . . . . Matter . | . . . . . . Time . | . . . . . . Total Robot Build Rating . | . . . . . . Part Schematics Acquired 1 | . 1 . . . . Parts Built . | . . . . . . Matter . | . . . . . . Time . | . . . . . . Total Part Build Rating . | . . . . . . Parts Repaired . | . . . . . . Time . | . . . . . . Parts Recycled . | . . . . . . Recycled Matter . | . . . . . . Retrieved Matter . | . . . . . . Retrieved Components . | . . . . . . Parts Scanalyzed 1 | . . . . . 1 Part Schematics Acquired . | . . . . . . Parts Damaged . | . . . . . . Bothacking | -11 -10 -10 -10 -9 -8 ------------ Run | Scr Mat Min Exi Min Mat Used RIF Installer . | . . . . . . Robots Hacked . | . . . . . . Non-combat . | . . . . . . Combat . | . . . . . . Robot Hacks Applied . | . . . . . . Relay Couplers Released . | . . . . . . Robots Rewired . | . . . . . . Allies Hacked . | . . . . . . Hacks Repelled . | . . . . . . Allies | -11 -10 -10 -10 -9 -8 -------- Run | Scr Mat Min Exi Min Mat Total Allies 1 | . 1 . . . . Largest Group 1 | . 1 . . . . Highest-Rated Group 10 | . 10 . . . . Highest-Rated Ally 10 | . 10 . . . . Total Orders . | . . . . . . Ally Attacks . | . . . . . . Total Damage . | . . . . . . Kills . | . . . . . . Allies Corrupted . | . . . . . . Allies Melted . | . . . . . . Intel | -11 -10 -10 -10 -9 -8 ------- Run | Scr Mat Min Exi Min Mat Robot Analysis Total . | . . . . . . Derelict Logs Recovered 1 | . . . . 1 . Drone Launches . | . . . . . . Drone Recoveries . | . . . . . . Exploration | -11 -10 -10 -10 -9 -8 ------------- Run | Scr Mat Min Exi Min Mat Turns Passed 1140 | 35 174 333 245 177 176 Spaces Moved 1081 | 23 186 310 271 134 157 Core 3 | 1 . 2 . . . Treads . | . . . . . . Legs . | . . . . . . Wheels 1077 | 22 186 307 271 134 157 Hover . | . . . . . . Flight 1 | . . 1 . . . Fastest Speed 50 | 50 80 80 90 90 90 Average Speed 87 | 78 80 89 90 90 90 Slowest Speed 280 | 80 80 280 90 90 90 Overloaded Moves . | . . . . . . Propulsion Burnouts . | . . . . . . Robots Hopped . | . . . . . . Cave-ins Triggered . | . . . . . . Exploration Rate (%) 37 | 3 26 78 69 32 14 Regions Visited 5 Branch Regions 3 Pre-discovered Areas . | . . . . . . Known Exits Taken 2 | . 1 . . 1 . Unknown Exits Taken 3 | 1 . 1 1 . . Scrap Searched 2 | . . 2 . . . Spaces Dug . | . . . . . . Terrain Destroyed . | . . . . . . Melee . | . . . . . . Projectile . | . . . . . . AOE . | . . . . . . Actions | -11 -10 -10 -10 -9 -8 --------- Run | Scr Mat Min Exi Min Mat Total 1214 | 32 204 345 272 177 184 Wait 59 | . 6 6 . 28 19 Move 1076 | 22 185 309 270 133 157 Hop . | . . . . . . Pick Up 1 | . 1 . . . . Fast Attach 11 | 4 2 5 . . . Attach . | . . . . . . Detach . | . . . . . . Swap 3 | . 1 1 1 . . Drop 7 | . 1 5 1 . . Fire 54 | 6 8 19 . 13 8 Melee . | . . . . . . Ram . | . . . . . . Kick . | . . . . . . Crush . | . . . . . . Escape Stasis . | . . . . . . Rewire . | . . . . . . Trap . | . . . . . . Miscellaneous 3 | . . . . 3 . Route ------- -11/Scrapyard -10/Materials -10/Mines (discovered 3 exits: [*Mat x2] / *Exi) -10/Exiles -9/Mines -8/Materials (discovered 1 exit: [*Sto]) History --------- Turn | Location | Event 10 | -11/Scrapyard | Discovered new exit (range 15) 36 | -11/Scrapyard | Entered Materials 65 | -10/Materials | Upgraded with Utility slot (x1) 87 | -10/Materials | Discovered new exit (range 9) 127 | -10/Materials | Identified exit to Mines 127 | -10/Materials | Central database locked down 200 | -10/Materials | Upgraded with Utility slot (x1) 210 | -10/Materials | Entered Mines 254 | -10/Mines | Joined a pair of Derelicts in attacking an 0b10 outpost 289 | -10/Mines | Upgraded with Propulsion slot (x1) 435 | -10/Mines | Discovered new exit (range 12) 440 | -10/Mines | Discovered new exit (range 16) 452 | -10/Mines | Discovered new exit (range 16) 459 | -10/Mines | Core integrity fell below 50% 474 | -10/Mines | Destroyed YI-UF0 539 | -10/Mines | Deemed a non-threat by the Exiles lab entrance 543 | -10/Mines | Entered Exiles 554 | -10/Exiles | Build established: Scavenger-Mutant 566 | -10/Exiles | Met 8R-AWN 581 | -10/Exiles | Met EX-HEX 605 | -10/Exiles | Met EX-BIN 616 | -10/Exiles | Aligned with FarCom system 616 | -10/Exiles | Given EX-Vault access code 637 | -10/Exiles | Opened EX-Vault 667 | -10/Exiles | Warned to stay clear of 0b10 Research branches 690 | -10/Exiles | Met EX-DEC 780 | -10/Exiles | Discovered new exit (range 11) 788 | -10/Exiles | Entered Mines 790 | -9/Mines | Reached level 2 878 | -9/Mines | Identified exit to Materials 965 | -9/Mines | Entered Materials 966 | -8/Materials | Core integrity fell below 50% 967 | -8/Materials | Reached level 3 1096 | -8/Materials | Discovered new exit (range 13) 1100 | -8/Materials | Core integrity fell below 20% 1141 | -8/Materials | Destroyed by Y-45 Defender with Beam Rifle Last Messages --------------- GOAL=ESCAPE 00965_ Receiving FarCom transmissions... 00967_ Reached level 3. 00988_ Connecting with Scanalyzer... >>Insert(Grenade Launcher) Scanning Grenade Launcher... Ready to analyze. >>Scanalyze Scanning: Grenade Launcher... Scan incomplete, additional scanning required. >>Scanalyze Scanning: Grenade Launcher... Scan incomplete, additional scanning required. 01012_ Acquired 18 matter. 01096_ EXIT=FOUND 01108_ Connecting with Recycling Unit... >>Recycling(Report) Matter reserves: 0 Inventory: Empty 01138_ G-47 Trooper destroyed. Map ----- +----------------------------------------------------+ | ????????????????????????????????????????????????? | | ????????????????????????????????????????????????? | | ????????????????????????????????????????????????? | | ????????????????????????????????????????????????? | | ????????????????????????????????????????????????? | | ????????????????????????????????????????????????? | | ???????????????????g????????????????????????????? | | ????????????????g???????????????????????????????? | | ??????????????????????????w?????????????????????? | | ????????????????????????????????????????????????? | | ??????????????????????o?????????????????????????? | | ????????????????????????????????????????????????? | | ????????????????????????????????????????????????? | | ?????????????????????????"????#???? #?????????? | | ?????????????????????????"????????# #?????????? | | ????????????????????????????????#??^ #?????????? | | ????????????????????????? ????????? #?????????? | | ??????????????????????????? ?????## #?????????? | | ????????????????????????????????? #?????????? | | ??????????? ????????????????????? #???????? ? | | ?????????????????????????????#?? #?????????? | | ?????????????????????##?????#????? #??#??????? | | ????????????#????###########?????? #?????????? | | ?????? ????? ????# ##????? #?#???????? | | ?????? ????? ????# ""#?????## #????#????? | | ????????? ???????# """ @Y"######## ####### / | | ????????? ???????# """ !Y""# | | ?????????"???? ??# """ + < | | ???????"?????????# """ # | | ???#?????????????# """ ! #########+######## | | ?????????????????# ##??# % #??????? | | ?#????????????#??###########?#?# #??????? | | ??####?????????????????????????# """ """ #??????? | | ?##%%#??????#??????????????????# """ """ #?#????? | | ?#% #?????#?????#??#??????#???# """ """ #?????? | | ?#% ########################### """ """ #?#????? | | ##% + """ """ #??????? | | ?#% ####### ################ #??? ??? | | ?##%%#?????# #???##???????#?###########??????? | | ??####??#??# #?????#????#??????##????????????? | | ???????????# #????#?#?????#?#????????????????? | | ????????#??# #???????????????????????????????? | | ?########### #??????????????#????????????????? | | ?# # ######??????#??#????????#????????? | | ?# # # #???????????????#???????????? | | ?# # # #????????????#??#??? ?? ????? | | ?# """ + # #?#?????????????????????????? | | ?# """ # + #???????????????????????????? | | ?# "" """ # # #???#???????????????????????? | | ## S"" # # #??#????#???????#???????????? | +----------------------------------------------------+ Best States ------------- Heat Dissipation 25 Energy Generation 12 Energy Capacity 265 Matter Stores 500 Matter Capacity 500 Sight Range 16 Terrain Scan Range 16 Terrain Scan Density 10 Evasion (%) 44 Offensive Hacking 10 Item Schematics ----------------- Sensor Array | -10/Materials | Hacked Robot Schematics ------------------ None Fabricated ------------ Nothing Alien Tech Used ----------------- None Achievements -------------- None Challenges ------------ None RPGLIKE | -11 -10 -10 -10 -9 -8 --------- Run | Scr Mat Min Exi Min Mat Levels Raised 2 | . . . . 1 1 XP Earned 6810 | 3000 260 650 350 950 1600 XP Spent 2050 | . 1550 500 . . . Upgrades 4 | . 3 1 . . . Propulsion Slot 1 | . . 1 . . . Utility Slot 2 | . 2 . . . . Inventory Capacity 1 | . 1 . . . . Protomatter Created 44 | . 15 . . 29 . Integrity Restored 54 | . . . . 54 . Core 54 | . . . . 54 . Protomatter Decayed 29 | . . 29 . . . Game ------ Seed HypercooledFocalChronowheel Manual? 0 Play Time 00:12:56 Cumulative 138.3 hours Start 2019.12.19 @ 12:57:26 End 2019.12.19 @ 16:06:40 Sessions 3 Manual Loads 0 Difficulty Rogue Special Mode Winter2019/RPGLIKE Game No. 188 Rogue 177 Adventurer 11 Explorer 0 Win Type - Total 0 Types 0/0/0/0/0/0/0 Lore% 45 Gallery% 58 Achievement% 41 Wizard Run 0 Options --------- ASCII 0 Keyboard 1 Movement Numpad Keybinds 0 Fullscreen 1 Font 12/Terminus Map View 83x54 Tactical HUD 1 Map Filters NONE Filters NONE Steam 1 RUN: f6158aff-a273-4aaa-96b1-b467486d38b5